fUSD/lending_fUSD_20240923
["ID","MTS","AMOUNT","RATE_DAILY","PERIOD"]
[338947042,1727087471922,-54.13290361,0.00012994,2]
[338947043,1727087471943,-261.569,0.00012992,2]
[338947044,1727087471955,-370.671,0.00012992,2]
[338947045,1727087471965,-92.7492856,0.00012994,2]
[338947046,1727087472151,-351.33185586,0.00012876,2]
[338947047,1727087472167,-148.66814414,0.00012876,2]
[338947048,1727087472177,-500.0,0.00012876,2]
[338947049,1727087472186,-321.8269669,0.00012876,2]
[338947050,1727087472198,-178.1730331,0.00012876,2]
[338947051,1727087472208,-500.0,0.00012987,2]
[338947052,1727087472217,-768.23,0.00012989,2]
[338947053,1727087472227,-276.86,0.00012989,2]
[338947054,1727087472236,-768.23,0.00012991,2]
[338947055,1727087472246,-520.97,0.00012992,2]
[338947056,1727087472256,-520.97,0.00012992,2]
[338947057,1727087472266,-768.23,0.00012992,2]
[338947058,1727087472275,-520.97,0.00012993,2]
[338947059,1727087472285,-1525.08,0.00012993,2]
[338947060,1727087472295,-520.97,0.00012993,2]
[338947061,1727087472304,-520.97,0.00012993,2]
[338947062,1727087472318,-520.97,0.00012993,2]
[338947063,1727087472328,-768.23,0.00012993,2]
[338947064,1727087472337,-359.33781079,0.00012994,2]
[338947065,1727087472347,-506.22,0.00012994,2]
[338947066,1727087472356,-506.22,0.00012994,2]
[338947067,1727087472365,-506.22,0.00012994,2]
[338947068,1727087472375,-500.0,0.00012994,2]
[338947069,1727087472384,-500.0,0.00012994,2]
[338947070,1727087472393,-500.0,0.00012994,2]
[338947071,1727087472403,-500.0,0.00012994,2]
[338947072,1727087472413,-500.0,0.00012994,2]
[338947073,1727087472422,-500.0,0.00012994,2]
[338947074,1727087472431,-500.0,0.00012994,2]
[338947075,1727087472441,-500.0,0.00012994,2]
[338947076,1727087472450,-500.0,0.00012994,2]
[338947077,1727087472459,-500.0,0.00012994,2]
[338947078,1727087472469,-500.0,0.00012994,2]
[338947079,1727087472483,-500.0,0.00012994,2]
[338947080,1727087472494,-319.55453605,0.00012994,2]
[338947081,1727087472858,-500.0,0.00012876,2]
[338947082,1727087472869,-500.0,0.00012876,2]
[338947083,1727087472878,-500.0,0.00012876,2]
[338947084,1727087472888,-235.26633891,0.0001289,2]
[338947085,1727087472897,-500.0,0.00012899,2]
[338947086,1727087472907,-500.0,0.00012899,2]
[338947087,1727087472916,-13490.0,0.0001298,2]
[338947088,1727087472927,-500.0,0.00012987,2]
[338947089,1727087472936,-500.0,0.00012988,2]
[338947090,1727087472945,-500.0,0.00012988,2]
[338947091,1727087472954,-500.0,0.00012988,2]
[338947092,1727087472964,-224.38,0.00012989,2]
[338947093,1727087472974,-500.0,0.00012989,2]
[338947094,1727087472983,-500.0,0.0001299,2]
[338947095,1727087472992,-184.07,0.00012991,2]
[338947096,1727087473002,-500.0,0.00012991,2]
[338947097,1727087473011,-500.0,0.00012992,2]
[338947098,1727087473020,-500.0,0.00012992,2]
[338947099,1727087473029,-500.0,0.00012992,2]
[338947100,1727087473038,-520.97,0.00012993,2]
[338947101,1727087473048,-768.23,0.00012993,2]
[338947102,1727087473058,-768.23,0.00012993,2]
[338947103,1727087473068,-180.44546395,0.00012994,2]
[338947104,1727087473078,-500.0,0.00012994,2]
[338947105,1727087473088,-151.0,0.00012994,2]
[338947106,1727087473097,-500.0,0.00012994,2]
[338947107,1727087473107,-500.0,0.00012994,2]
[338947108,1727087473116,-500.0,0.00012994,2]
[338947109,1727087473125,-151.0,0.00012994,2]
[338947110,1727087473134,-680.070745,0.00012994,2]
[338947111,1727087473144,-500.0,0.00012994,2]
[338947112,1727087473153,-500.0,0.00012994,2]
[338947113,1727087473162,-762.43,0.00012994,2]
[338947114,1727087473172,-500.0,0.00012994,2]
[338947115,1727087473181,-762.43,0.00012994,2]
[338947116,1727087473190,-500.0,0.00012994,2]
[338947117,1727087473199,-762.43,0.00012994,2]
[338947118,1727087473209,-680.070745,0.00012994,2]
[338947119,1727087473218,-500.0,0.00012994,2]
[338947120,1727087473227,-500.0,0.00012994,2]
[338947121,1727087473236,-500.0,0.00012994,2]
[338947122,1727087473246,-500.0,0.00012994,2]
[338947123,1727087473255,-500.0,0.00012994,2]
[338947124,1727087473264,-500.0,0.00012994,2]
[338947125,1727087473273,-500.0,0.00012994,2]
[338947126,1727087473285,-500.0,0.00012994,2]
[338947127,1727087473294,-500.0,0.00012994,2]
[338947128,1727087473304,-609.26,0.00012994,2]
[338947129,1727087473314,-609.26,0.00012994,2]
[338947130,1727087473326,-609.26,0.00012994,2]
[338947131,1727087473335,-151.0,0.00012994,2]
[338947132,1727087473344,-609.26,0.00012994,2]
[338947133,1727087473353,-609.26,0.00012994,2]
[338947134,1727087473362,-500.0,0.00012994,2]
[338947135,1727087473372,-500.0,0.00012994,2]
[338947136,1727087473381,-500.0,0.00012994,2]
[338947137,1727087473393,-500.0,0.00012994,2]
[338947138,1727087473403,-500.0,0.00012994,2]
[338947139,1727087473412,-500.0,0.00012994,2]
[338947140,1727087473421,-500.0,0.00012994,2]
[338947141,1727087473430,-500.0,0.00012994,2]
[338947142,1727087473440,-500.0,0.00012994,2]
[338947143,1727087473449,-500.0,0.00012994,2]
[338947144,1727087473458,-500.0,0.00012994,2]
[338947145,1727087473468,-500.0,0.00012994,2]
[338947146,1727087473480,-500.0,0.00012994,2]
[338947147,1727087473490,-151.287723,0.00012994,2]
[338947148,1727087473499,-500.0,0.00012994,2]
[338947149,1727087473508,-500.0,0.00012994,2]
[338947150,1727087473519,-500.0,0.00012994,2]
[338947151,1727087473528,-500.0,0.00012994,2]
[338947152,1727087473537,-500.0,0.00012994,2]
[338947153,1727087473547,-500.0,0.00012994,2]
[338947154,1727087473556,-500.0,0.00012994,2]
[338947155,1727087473567,-500.0,0.00012994,2]
[338947156,1727087473576,-500.0,0.00012994,2]
[338947157,1727087473586,-500.0,0.00012994,2]
[338947158,1727087473596,-500.0,0.00012994,2]
[338947159,1727087473606,-500.0,0.00012994,2]
[338947160,1727087473615,-500.0,0.00012994,2]
[338947161,1727087473626,-462.597163,0.00012994,2]
[338947162,1727087473636,-500.0,0.00012994,2]
[338947163,1727087473647,-500.0,0.00012994,2]
[338947164,1727087473656,-500.0,0.00012994,2]
[338947165,1727087473665,-462.597163,0.00012994,2]
[338947166,1727087473674,-1800.224015,0.00012994,2]
[338947167,1727087473684,-606.05,0.00012994,2]
[338947168,1727087473694,-606.05,0.00012994,2]
[338947169,1727087473705,-606.05,0.00012994,2]
[338947170,1727087473715,-500.0,0.00012994,2]
[338947171,1727087473725,-500.0,0.00012994,2]
[338947172,1727087473735,-500.0,0.00012994,2]
[338947173,1727087473746,-500.0,0.00012994,2]
[338947174,1727087473756,-500.0,0.00012994,2]
[338947175,1727087473767,-500.0,0.00012994,2]
[338947176,1727087473777,-500.0,0.00012994,2]
[338947177,1727087473788,-500.0,0.00012994,2]
[338947178,1727087473798,-500.0,0.00012994,2]
[338947179,1727087473808,-500.0,0.00012994,2]
[338947180,1727087473819,-500.0,0.00012994,2]
[338947181,1727087473829,-1800.224015,0.00012994,2]
[338947182,1727087473838,-500.0,0.00012994,2]
[338947183,1727087473848,-500.0,0.00012994,2]
[338947184,1727087473859,-500.0,0.00012994,2]
[338947185,1727087473869,-500.0,0.00012994,2]
[338947186,1727087473879,-500.0,0.00012994,2]
[338947187,1727087473888,-500.0,0.00012994,2]
[338947188,1727087473897,-500.0,0.00012994,2]
[338947189,1727087473906,-83.43106554,0.00012994,2]
[338947190,1727087473927,-416.56893446,0.00012994,2]
[338947191,1727087473936,-500.0,0.00012994,2]
[338947192,1727087473945,-176.07843562,0.00012994,2]
[338947193,1727087473955,-500.0,0.00012994,2]
[338947194,1727087473964,-500.0,0.00012994,2]
[338947195,1727087473973,-500.0,0.00012994,2]
[338947196,1727087473983,-500.0,0.00012994,2]
[338947197,1727087473992,-500.0,0.00012994,2]
[338947198,1727087474002,-500.0,0.00012994,2]
[338947199,1727087474012,-500.0,0.00012994,2]
[338947200,1727087474022,-15.42070076,0.00012994,2]
[338947201,1727087474269,-500.0,0.00012876,2]
[338947202,1727087474280,-163.28825763,0.00012876,2]
[338947203,1727087474290,-500.0,0.00012876,2]
[338947204,1727087474299,-235.26633891,0.00012891,2]
[338947205,1727087474309,-933.0,0.00012967,2]
[338947206,1727087474320,-500.0,0.00012989,2]
[338947207,1727087474329,-500.0,0.00012991,2]
[338947208,1727087474339,-512.25,0.00012991,2]
[338947209,1727087474348,-491.43,0.00012993,2]
[338947210,1727087474358,-592.43,0.00012993,2]
[338947211,1727087474368,-484.57929924,0.00012994,2]
[338947212,1727087474378,-500.0,0.00012994,2]
[338947213,1727087474388,-500.0,0.00012994,2]
[338947214,1727087474398,-500.0,0.00012994,2]
[338947215,1727087474408,-500.0,0.00012994,2]
[338947216,1727087474418,-500.0,0.00012994,2]
[338947217,1727087474428,-500.0,0.00012994,2]
[338947218,1727087474438,-206.29201333,0.00012994,2]
[338947219,1727087474448,-1419.93,0.00012994,2]
[338947220,1727087474457,-1419.93,0.00012994,2]
[338947221,1727087474467,-1419.93,0.00012994,2]
[338947222,1727087474482,-1419.93,0.00012994,2]
[338947223,1727087474492,-1419.93,0.00012994,2]
[338947224,1727087474502,-1419.93,0.00012994,2]
[338947225,1727087474511,-1419.93,0.00012994,2]
[338947226,1727087474522,-1419.94,0.00012994,2]
[338947227,1727087474531,-716.08,0.00012994,2]
[338947228,1727087474541,-716.08,0.00012994,2]
[338947229,1727087474552,-716.08,0.00012994,2]
[338947230,1727087474562,-716.08,0.00012994,2]
[338947231,1727087474571,-716.08,0.00012994,2]
[338947232,1727087474580,-580.857561,0.00012994,2]
[338947233,1727087474590,-461.473593,0.00012994,2]
[338947234,1727087474599,-500.0,0.00012994,2]
[338947235,1727087474609,-500.0,0.00012994,2]
[338947236,1727087474619,-500.0,0.00012994,2]
[338947237,1727087474628,-580.857561,0.00012994,2]
[338947238,1727087474638,-1146.94,0.00012994,2]
[338947239,1727087474647,-1146.94,0.00012994,2]
[338947240,1727087474657,-1146.94,0.00012994,2]
[338947241,1727087474667,-461.473593,0.00012994,2]
[338947242,1727087474676,-1146.94,0.00012994,2]
[338947243,1727087474687,-1146.94,0.00012994,2]
[338947244,1727087474696,-1146.94,0.00012994,2]
[338947245,1727087474705,-1146.94,0.00012994,2]
[338947246,1727087474715,-1147.10781442,0.00012994,2]
[338947247,1727087474724,-1415.01,0.00012994,2]
[338947248,1727087474734,-602.62051507,0.00012994,2]
[338947252,1727087716098,328.0,0.0001196,2]
[338947253,1727087726783,6022.77,0.00011964,2]
[338947254,1727087859890,155.07,0.00010959,2]
[338947255,1727087921780,336.57,0.00011922,2]
[338947256,1727087953624,219.56,0.00013186,30]
[338947257,1727087997132,500.0,9.35e-05,2]
[338947258,1727087997326,600.0,9.35e-05,2]
[338947259,1727088066824,500.0,0.00012131,30]
[338947260,1727088067230,500.0,0.00012131,30]
[338947261,1727088067743,610.1489475,0.00012131,30]
[338947262,1727088093462,500.0,0.00011958,2]
[338947263,1727088101106,493.69,0.00011953,2]
[338947264,1727088145986,-250.0,0.00012031,2]
[338947265,1727088146010,-161.057473,0.00012438,2]
[338947266,1727088146035,-300.0,0.00012775,2]
[338947267,1727088146060,-14392.94194423,0.00012776,2]
[338947268,1727088146081,-14392.94194414,0.0001279,2]
[338947269,1727088146106,-698.76905882,0.00012799,2]
[338947270,1727088146130,-9804.28957981,0.00012804,2]
[338947271,1727088146782,-4588.65236433,0.00012804,2]
[338947272,1727088146809,-698.76905876,0.00012813,2]
[338947273,1727088146832,-150.0,0.00012816,2]
[338947274,1727088146856,-14392.94194414,0.00012817,2]
[338947275,1727088146880,-698.76905876,0.00012828,2]
[338947276,1727088146903,-14392.94194414,0.00012831,2]
[338947277,1727088146925,-698.76905876,0.00012842,2]
[338947278,1727088146948,-4379.15657111,0.00012845,2]
[338947279,1727088153521,-10013.78537303,0.00012845,2]
[338947280,1727088153546,-698.76905876,0.00012857,2]
[338947281,1727088153573,-14392.94194414,0.00012859,2]
[338947282,1727088153598,-698.76905876,0.00012871,2]
[338947283,1727088153624,-3995.73456531,0.00012872,2]
[338947284,1727088162086,600.45,0.00010959,2]
[338947285,1727088172278,-1018.67487524,0.00012615,2]
[338947286,1727088172301,-3481.32512476,0.00012872,2]
[338947288,1727088197667,500.0,9.35e-05,2]
[338947289,1727088223994,256.83,0.00010035,2]
[338947290,1727088254385,250.0,0.00011943,2]
[338947291,1727088280106,737.6,0.00011946,2]
[338947292,1727088300996,150.0,0.00012,2]
[338947293,1727088306035,150.0,0.00011688,2]
[338947294,1727088308575,150.0,0.00011688,2]
[338947295,1727088311732,150.18114558,0.00011688,2]
[338947296,1727088314237,150.00000001,0.00011688,2]
[338947297,1727088317657,150.0,0.00011688,2]
[338947298,1727088320559,150.0,0.00011688,2]
[338947299,1727088324690,150.0,0.00011688,2]
[338947300,1727088327005,150.18280758,0.00011688,2]
[338947301,1727088328894,150.0,0.00011688,2]
[338947302,1727088330795,150.0,0.00011688,2]
[338947303,1727088335880,150.0,0.00011688,2]
[338947304,1727088338536,165.62,0.00011934,2]
[338947306,1727088341698,150.17982206,0.00011688,2]
[338947312,1727088388141,161.06,0.00010959,2]
[338947316,1727088446813,151.83,0.00011839,2]
[338947318,1727088468676,300.67,0.00011843,2]
[338947319,1727088502458,162.63453538,0.00013,30]
[338947370,1727088625704,250.0,0.00011874,2]
[338947372,1727088631978,-250.0,0.0001209,2]
[338947373,1727088631988,-150.0,0.00012121,2]
[338947374,1727088631999,-256.83,0.00012299,2]
[338947375,1727088632009,-150.0,0.00012337,2]
[338947376,1727088632019,-150.0,0.00012337,2]
[338947377,1727088632030,-150.0,0.00012337,2]
[338947378,1727088632041,-150.0,0.00012553,2]
[338947379,1727088632051,-421.94785814,0.00012621,2]
[338947380,1727088632060,-415.0343,0.00012691,2]
[338947381,1727088632069,-4273.28784186,0.00012691,2]
[338947382,1727088632090,-1585.86305814,0.00012691,2]
[338947383,1727088632099,-2500.0,0.00012691,2]
[338947384,1727088632108,-7407.8899,0.00012692,2]
[338947385,1727088632117,-1000.0,0.00012692,2]
[338947386,1727088632128,-358.1,0.000127,2]
[338947387,1727088632138,-150.0,0.000127,2]
[338947388,1727088632148,-428.17,0.000127,2]
[338947389,1727088632158,-358.1,0.000127,2]
[338947390,1727088632167,-150.0,0.000127,2]
[338947391,1727088632176,-150.0,0.000127,2]
[338947392,1727088632185,-358.1,0.000127,2]
[338947393,1727088632195,-753.56,0.000127,2]
[338947394,1727088632204,-358.1,0.000127,2]
[338947395,1727088632215,-358.1,0.000127,2]
[338947396,1727088632224,-358.1,0.000127,2]
[338947397,1727088632234,-358.1,0.000127,2]
[338947398,1727088632243,-1000.0,0.000127,2]
[338947399,1727088632254,-358.1,0.000127,2]
[338947400,1727088632263,-358.1,0.000127,2]
[338947401,1727088632274,-358.1,0.000127,2]
[338947402,1727088632284,-1368.09597731,0.00012732,2]
[338947403,1727088632296,-9742.11928859,0.00012732,2]
[338947404,1727088632306,-11110.21526584,0.00012751,2]
[338947405,1727088632316,-2765.74781439,0.00012769,2]
[338947406,1727088632327,-8344.46745145,0.00012769,2]
[338947407,1727088632337,-203.08594783,0.00012773,2]
[338947408,1727088632346,-500.0,0.00012773,2]
[338947409,1727088632356,-500.0,0.00012773,2]
[338947410,1727088632365,-2865.76,0.00012776,2]
[338947411,1727088632375,-4017.4951,0.00012776,2]
[338947412,1727088632384,-1705.8688,0.00012776,2]
[338947413,1727088632393,-1044.5988,0.00012776,2]
[338947414,1727088632404,-2937.8605,0.00012776,2]
[338947415,1727088632413,-11110.21526584,0.00012788,2]
[338947416,1727088632423,-33176.19061321,0.0001279,2]
[338947417,1727088638115,-31994.48108798,0.0001279,2]
[338947418,1727088638126,-45406.08006959,0.0001279,2]
[338947419,1727088638155,-211194.12991495,0.0001279,2]
[338947420,1727088638164,-11110.21526584,0.00012807,2]
[338947421,1727088638174,-11110.21526584,0.00012825,2]
[338947422,1727088638183,-11110.21526584,0.00012844,2]
[338947423,1727088638192,-153.73,0.00012866,2]
[338947424,1727088638201,-500.0,0.00012873,2]
[338947425,1727088638210,-356.87878949,0.00012875,2]
[338947426,1727088638219,-500.0,0.00012876,2]
[338947427,1727088638228,-534.38257538,0.00012876,2]
[338947428,1727088638237,-500.0,0.00012876,2]
[338947429,1727088638247,-500.0,0.00012876,2]
[338947430,1727088638256,-813.34,0.00012876,2]
[338947431,1727088638266,-813.34,0.00012876,2]
[338947432,1727088638275,-749.31,0.00012876,2]
[338947433,1727088638285,-749.31,0.00012876,2]
[338947434,1727088638295,-500.0,0.00012876,2]
[338947435,1727088638304,-500.0,0.00012876,2]
[338947436,1727088638314,-500.0,0.00012876,2]
[338947437,1727088638323,-500.0,0.00012876,2]
[338947438,1727088638332,-898.37,0.00012876,2]
[338947439,1727088638342,-898.37,0.00012876,2]
[338947440,1727088638352,-500.0,0.00012876,2]
[338947441,1727088638362,-500.0,0.00012876,2]
[338947442,1727088638371,-500.0,0.00012876,2]
[338947443,1727088638381,-225.28274487,0.00012876,2]
[338947444,1727088638390,-500.0,0.00012876,2]
[338947445,1727088638399,-500.0,0.00012876,2]
[338947446,1727088638409,-500.0,0.00012876,2]
[338947447,1727088638418,-500.0,0.00012876,2]
[338947448,1727088638427,-500.0,0.00012876,2]
[338947449,1727088638436,-500.0,0.00012876,2]
[338947450,1727088638445,-500.0,0.00012876,2]
[338947451,1727088638455,-500.0,0.00012876,2]
[338947452,1727088638464,-500.0,0.00012876,2]
[338947453,1727088638473,-500.0,0.00012876,2]
[338947454,1727088638483,-500.0,0.00012876,2]
[338947455,1727088638492,-500.0,0.00012876,2]
[338947456,1727088638501,-473.86366065,0.00012876,2]
[338947457,1727088638511,-500.0,0.00012876,2]
[338947458,1727088638520,-500.0,0.00012876,2]
[338947459,1727088638529,-500.0,0.00012876,2]
[338947460,1727088638539,-500.0,0.00012876,2]
[338947461,1727088638549,-575.47,0.00012876,2]
[338947462,1727088638558,-575.47,0.00012876,2]
[338947463,1727088638567,-684.57,0.00012876,2]
[338947464,1727088638578,-684.57,0.00012876,2]
[338947465,1727088638587,-500.0,0.00012876,2]
[338947466,1727088638597,-500.0,0.00012876,2]
[338947467,1727088638606,-666.42,0.00012876,2]
[338947468,1727088638616,-666.42,0.00012876,2]
[338947469,1727088638626,-500.0,0.00012876,2]
[338947470,1727088638635,-500.0,0.00012876,2]
[338947471,1727088638644,-500.0,0.00012876,2]
[338947472,1727088638654,-500.0,0.00012876,2]
[338947473,1727088638663,-500.0,0.00012876,2]
[338947474,1727088638673,-500.0,0.00012876,2]
[338947475,1727088638682,-500.0,0.00012876,2]
[338947476,1727088638691,-500.0,0.00012876,2]
[338947477,1727088638700,-500.0,0.00012876,2]
[338947478,1727088638710,-500.0,0.00012876,2]
[338947479,1727088638719,-500.0,0.00012876,2]
[338947480,1727088638729,-500.0,0.00012876,2]
[338947481,1727088638738,-500.0,0.00012876,2]
[338947482,1727088638748,-586.68936028,0.00012876,2]
[338947483,1727088638757,-500.0,0.00012876,2]
[338947484,1727088638766,-500.0,0.00012876,2]
[338947485,1727088638775,-500.0,0.00012876,2]
[338947486,1727088638785,-500.0,0.00012876,2]
[338947487,1727088638795,-500.0,0.00012876,2]
[338947488,1727088638804,-500.0,0.00012876,2]
[338947489,1727088638813,-500.0,0.00012876,2]
[338947490,1727088638823,-339.4778643,0.00012876,2]
[338947491,1727088638836,-500.0,0.00012876,2]
[338947492,1727088638845,-500.0,0.00012876,2]
[338947493,1727088638855,-563.6,0.00012876,2]
[338947494,1727088638864,-563.6,0.00012876,2]
[338947495,1727088638875,-500.0,0.00012876,2]
[338947496,1727088638885,-500.0,0.00012876,2]
[338947497,1727088638894,-500.0,0.00012876,2]
[338947498,1727088638905,-500.0,0.00012876,2]
[338947499,1727088638914,-1196.93,0.00012876,2]
[338947500,1727088638924,-1196.93,0.00012876,2]
[338947501,1727088638934,-500.0,0.00012876,2]
[338947502,1727088638943,-500.0,0.00012876,2]
[338947503,1727088638952,-500.0,0.00012876,2]
[338947504,1727088638961,-500.0,0.00012876,2]
[338947505,1727088638970,-500.0,0.00012876,2]
[338947506,1727088638980,-500.0,0.00012876,2]
[338947507,1727088638990,-500.0,0.00012876,2]
[338947508,1727088639000,-500.0,0.00012876,2]
[338947509,1727088639009,-1132.12,0.00012876,2]
[338947510,1727088639019,-642.8,0.00012876,2]
[338947511,1727088639029,-500.0,0.00012876,2]
[338947512,1727088639038,-1132.12,0.00012876,2]
[338947513,1727088639048,-642.8,0.00012876,2]
[338947514,1727088639058,-500.0,0.00012876,2]
[338947515,1727088639068,-500.0,0.00012876,2]
[338947516,1727088639078,-500.0,0.00012876,2]
[338947517,1727088639088,-900.84,0.00012876,2]
[338947518,1727088639097,-900.84,0.00012876,2]
[338947519,1727088639107,-500.0,0.00012876,2]
[338947520,1727088639116,-500.0,0.00012876,2]
[338947521,1727088639125,-1131.8,0.00012876,2]
[338947522,1727088639135,-1131.8,0.00012876,2]
[338947523,1727088639145,-554.67,0.00012876,2]
[338947524,1727088639155,-554.67,0.00012876,2]
[338947525,1727088639164,-500.0,0.00012876,2]
[338947526,1727088639173,-500.0,0.00012876,2]
[338947527,1727088639183,-500.0,0.00012876,2]
[338947528,1727088639193,-500.0,0.00012876,2]
[338947529,1727088639203,-500.0,0.00012876,2]
[338947530,1727088639213,-500.0,0.00012876,2]
[338947531,1727088639224,-594.9676139,0.00012876,2]
[338947532,1727088639234,-500.0,0.00012876,2]
[338947533,1727088639243,-500.0,0.00012876,2]
[338947534,1727088639253,-560.53,0.00012876,2]
[338947535,1727088639261,-560.53,0.00012876,2]
[338947536,1727088639271,-500.0,0.00012876,2]
[338947537,1727088639281,-500.0,0.00012876,2]
[338947538,1727088639291,-500.0,0.00012876,2]
[338947539,1727088639300,-500.0,0.00012876,2]
[338947540,1727088639310,-500.0,0.00012876,2]
[338947541,1727088639319,-500.0,0.00012876,2]
[338947542,1727088639328,-500.0,0.00012876,2]
[338947543,1727088639337,-500.0,0.00012876,2]
[338947544,1727088639347,-628.08,0.00012876,2]
[338947545,1727088639357,-500.0,0.00012876,2]
[338947546,1727088639366,-628.08,0.00012876,2]
[338947547,1727088639376,-500.0,0.00012876,2]
[338947548,1727088639386,-500.0,0.00012876,2]
[338947549,1727088639396,-500.0,0.00012876,2]
[338947550,1727088639407,-1687.96,0.00012876,2]
[338947551,1727088639416,-1687.96,0.00012876,2]
[338947552,1727088639425,-500.0,0.00012876,2]
[338947553,1727088639435,-500.0,0.00012876,2]
[338947554,1727088639444,-500.0,0.00012876,2]
[338947555,1727088639454,-500.0,0.00012876,2]
[338947556,1727088639464,-500.0,0.00012876,2]
[338947557,1727088639474,-500.0,0.00012876,2]
[338947558,1727088639484,-500.0,0.00012876,2]
[338947559,1727088639494,-500.0,0.00012876,2]
[338947560,1727088639503,-500.0,0.00012876,2]
[338947561,1727088639513,-500.0,0.00012876,2]
[338947562,1727088639523,-500.0,0.00012876,2]
[338947563,1727088639532,-500.0,0.00012876,2]
[338947564,1727088639542,-500.0,0.00012876,2]
[338947565,1727088639552,-500.0,0.00012876,2]
[338947566,1727088639561,-901.01,0.00012876,2]
[338947567,1727088639571,-500.0,0.00012876,2]
[338947568,1727088639581,-901.01,0.00012876,2]
[338947569,1727088639590,-500.0,0.00012876,2]
[338947570,1727088639599,-500.0,0.00012876,2]
[338947571,1727088639609,-500.0,0.00012876,2]
[338947572,1727088639618,-934.46,0.00012876,2]
[338947573,1727088639628,-507.39,0.00012876,2]
[338947574,1727088639638,-500.0,0.00012876,2]
[338947575,1727088639647,-934.46,0.00012876,2]
[338947576,1727088639657,-507.39,0.00012876,2]
[338947577,1727088639667,-500.0,0.00012876,2]
[338947578,1727088639676,-695.33,0.00012876,2]
[338947579,1727088639687,-695.33,0.00012876,2]
[338947580,1727088639696,-500.0,0.00012876,2]
[338947581,1727088639706,-500.0,0.00012876,2]
[338947582,1727088639715,-500.0,0.00012876,2]
[338947583,1727088639724,-500.0,0.00012876,2]
[338947584,1727088639735,-500.0,0.00012876,2]
[338947586,1727088639744,-500.0,0.00012876,2]
[338947588,1727088639753,-891.53,0.00012876,2]
[338947590,1727088639763,-891.53,0.00012876,2]
[338947591,1727088639773,-500.0,0.00012876,2]
[338947592,1727088639783,-500.0,0.00012876,2]
[338947593,1727088639792,-500.0,0.00012876,2]
[338947594,1727088639801,-500.0,0.00012876,2]
[338947595,1727088639811,-500.0,0.00012876,2]
[338947596,1727088639820,-500.0,0.00012876,2]
[338947597,1727088639833,-500.0,0.00012876,2]
[338947598,1727088639843,-500.0,0.00012876,2]
[338947599,1727088639853,-500.0,0.00012876,2]
[338947600,1727088639863,-500.0,0.00012876,2]
[338947601,1727088639874,-500.0,0.00012876,2]
[338947602,1727088639886,-500.0,0.00012876,2]
[338947603,1727088639897,-500.0,0.00012876,2]
[338947604,1727088639908,-500.0,0.00012876,2]
[338947605,1727088639918,-159.60141458,0.00012876,2]
[338947606,1727088639928,-500.0,0.00012876,2]
[338947607,1727088639938,-500.0,0.00012876,2]
[338947608,1727088639948,-500.0,0.00012876,2]
[338947609,1727088639958,-653.13,0.00012876,2]